Cogmind - Beta 13 @@@ ROGUE MODE // 2024.05.19 @ 19:16:13 Player: Bace Troncons Result: Destroyed by Y-64 Sentinel with Wave Gun Performance ------------- Evolutions (5) 2500 Regions Visited (7) 1400 Robots Destroyed (63) 315 Value Destroyed (2331) 2331 Prototype IDs (5) 100 Alien Tech Used (0) 0 Bonus (916) 916 TOTAL SCORE: 7562 Bonus ------- Follower Combat Kills 489 Entered DSFs 500 Friendly Fire -73 Cogmind --------- Core Integrity 0/1000 Matter 300/300 Energy 59/100 System Corruption 11% Temperature Cool (9) Movement Walking (111) Location -5/Extension Parts ------- > --- POWER (2) -------- (None) > --- PROPULSION (5) --- Carbon-Compact Exoskeleton > --- UTILITY (8) ------ Armored Scrap Engine Enhanced Optical Array Advanced Signal Interpreter Advanced Salvage Targeting Computer Melee Analysis Suite Improved Target Analyzer System Guard > --- WEAPON (2) ------- Heavy Pick Heavy Pick > --- INVENTORY (5) ---- Improved Signal Interpreter Improved Recalibrator Long-range Missile Launcher Peak State ------------ > --- POWER ------------ Neutrino-Angular Core > --- PROPULSION ------- Carbon-Compact Exoskeleton > --- UTILITY ---------- Armored Scrap Engine Enhanced Optical Array Advanced Signal Interpreter Advanced Salvage Targeting Computer Melee Analysis Suite Improved Target Analyzer System Guard > --- WEAPON ----------- Energy Wave Construct/G Phasing Sabre > --- INVENTORY -------- Improved Signal Interpreter Improved Recalibrator Long-range Missile Launcher Heavy Pick Heavy Pick [Rating: 84] Favorites ----------- Power Ion Engine Engine Ion Engine Power Core Constructs Propulsion Light Treads Treads Light Treads Leg Constructs Utility Hacking Suite Device Armored Scrap Engine Storage Small Storage Unit Processor Enhanced Optical Array Hackware Hacking Suite Protection Scrap Shield Weapon Battle Rifle Energy Gun Constructs Ballistic Gun Battle Rifle Ballistic Cannon Light Cannon Launcher Long-range Missile Launcher Special Weapon Improved Remote Datajack Impact Weapon Hammer Slashing Weapon Ripper Piercing Weapon Heavy Pick Build | -11 -10 -10 -8 -6 -6 -5 -5 ------- Run | Yrd Mat Sub Rec Fac DSF Fac Ext Slots Evolved 10 | . . . . 8 . 2 . Power 1 | . . . . 1 . . . Propulsion 3 | . . . . 2 . 1 . Utility 6 | . . . . 5 . 1 . Weapon . | . . . . . . . . Parts Attached 74 | 6 2 32 1 5 . 14 14 Power 3 | 1 1 1 . . . . . Engine 3 | 1 1 1 . . . . . Core . | . . . . . . . . Reactor . | . . . . . . . . Propulsion 5 | 2 . 3 . . . . . Treads 5 | 2 . 3 . . . . . Leg . | . . . . . . . . Wheel . | . . . . . . . . Hover . | . . . . . . . . Flight . | . . . . . . . . Utility 19 | 1 1 1 1 5 . 8 2 Device 4 | . . . 1 1 . 2 . Storage 1 | 1 . . . . . . . Processor 7 | . . . . . . 5 2 Hackware 5 | . . . . 4 . 1 . Protection 2 | . 1 1 . . . . . Artifact . | . . . . . . . . Weapon 47 | 2 . 27 . . . 6 12 Energy Gun 2 | . . 1 . . . 1 . Energy Cannon . | . . . . . . . . Ballistic Gun 17 | 2 . 13 . . . 2 . Ballistic Cannon 1 | . . 1 . . . . . Launcher 2 | . . . . . . 1 1 Special Weapon 3 | . . . . . . . 3 Impact Weapon 1 | . . 1 . . . . . Slashing Weapon 13 | . . 11 . . . 1 1 Piercing Weapon 8 | . . . . . . 1 7 Special Melee Weapon . | . . . . . . . . Unidentified Prototypes . | . . . . . . . . Parts Lost 23 | . . . 2 . 1 11 9 Power 7 | . . . 1 . . 2 4 Propulsion 3 | . . . . . . 2 1 Utility 9 | . . . 1 . 1 5 2 Weapon 4 | . . . . . . 2 2 Highest Loss Streak 5 | . . . 2 . 1 5 4 To Critical Strikes . | . . . . . . . . Average Slot Usage (%) 75 | . 98 85 69 65 65 49 60 Engine 8 | . 14 14 8 . . . 2 Core 1 | . . . 3 6 6 3 1 Treads 16 | . 28 28 7 . . 4 3 Wheel 1 | . . . 7 6 3 . 1 Device 4 | . . . 13 13 13 9 5 Storage 1 | . 14 . . . . . . Processor 5 | . . . . . . 4 25 Hackware 4 | . . . . 25 25 13 7 Protection 7 | . 12 14 . . . . . Ballistic Gun 10 | . 28 18 . . . 1 1 Ballistic Cannon 1 | . . 3 . . . . . Slashing Weapon 6 | . . 3 28 13 13 6 . Piercing Weapon 1 | . . . . . . 1 5 Naked Turns . | . . . . . . . . Heaviest Build 29 | 12 15 29 27 13 13 18 27 Greatest Support 117 | 40 40 40 40 40 40 117 90 Greatest Overweight (x) 2 | . . . 2 . . . . Average Overweight (x) . | . . . . . . . . Largest Inventory Capacity 8 | 8 8 8 5 5 5 5 5 Average Capacity 5 | 7 8 5 5 5 5 5 5 Most Carried 7 | 3 7 7 5 4 2 5 5 Average Carried 4 | 1 6 5 4 1 2 2 4 Final Capacity 8 | 8 8 5 5 5 5 5 5 Final Carried 7 | 3 7 5 5 2 2 5 3 Scrap Engine Consumption 210 | . . . 47 14 28 51 70 Constructs Created 9 | . . . 2 . . 2 5 Constructs Modified 31 | . . . 6 1 1 7 16 Class Distribution -------------------- 55% | Mutant 24% | Hacker-Mutant 13% | Construct 4% | Derelict-Mutant Dominant Class ---------------- Mutant | -10/Materials Mutant | -10/Subcaves Construct | -8/Recycling Hacker-Mutant | -6/Factory Hacker-Mutant | -6/DSF Hacker-Mutant | -5/Factory Hacker-Mutant | -5/Extension Resources | -11 -10 -10 -8 -6 -6 -5 -5 ----------- Run | Yrd Mat Sub Rec Fac DSF Fac Ext Matter Collected 1936 | 205 47 748 197 . 50 144 545 Remotely . | . . . . . . . . Salvage Created 3709 | . 98 885 1023 . 75 749 879 Parts 176 | . 4 64 35 . 6 37 30 Haulers Intercepted 1 | . 1 . . . . . . Recyclers Shooed 1 | . . . . . . . 1 Parts Field Recycled . | . . . . . . . . Retrieved Matter . | . . . . . . . . Parts Self-Destructed 7 | . . 7 . . . . . Prevented . | . . . . . . . . Kills | -11 -10 -10 -8 -6 -6 -5 -5 ------- Run | Yrd Mat Sub Rec Fac DSF Fac Ext Combat Hostiles Destroyed 47 | . 1 20 3 . 1 14 8 Melee 26 | . . 1 3 . 1 14 7 Guns 20 | . 1 18 . . . . 1 Cannons 1 | . . 1 . . . . . Classes Destroyed 10 | . 2 3 1 . 1 2 1 Hauler 1 | . 1 . . . . . . Recycler 11 | . . . 9 . . . 2 Operator 2 | . . . . . . 1 1 Watcher 2 | . . . . . . . 2 Swarmer 6 | . . 2 . . . 4 . Grunt 12 | . 1 . . . . 4 7 Sentry 7 | . . 1 3 . . 2 1 Specialist 1 | . . . . . 1 . . Programmer 4 | . . . . . . 4 . Subdweller 17 | . . 17 . . . . . Best Kill Streak 5 | . 1 2 3 . 1 5 3 Combat Bots Only 5 | . 1 2 2 . 1 5 3 Max Kills in Single Turn 1 | . 1 1 1 . 1 1 1 Gunslinging . | . . . . . . . . Exploded . | . . . . . . . . Melee 1 | . . 1 1 . 1 1 1 Uniques/NPCs Destroyed . | . . . . . . . . Combat | -11 -10 -10 -8 -6 -6 -5 -5 -------- Run | Yrd Mat Sub Rec Fac DSF Fac Ext Hostile Shots Fired 527 | . 4 121 19 . 28 141 214 Missed 143 | . . 30 2 . 10 31 70 Damage Taken 8167 | . 44 1855 258 . 303 2713 2994 Core 1361 | . 10 190 15 . 138 451 557 Absorbed by Shields 14 | . . . . . . . 14 Redirected to Shielding 18 | . . 18 . . . . . Regen/Repaired (Parts) 1177 | . . . . . 45 290 842 Core Remaining (%) 65 | 100 . . 14 . 83 . . Volleys Fired 129 | . 7 76 . . . 4 42 Largest 2 | . 2 2 . . . 1 1 Hottest 75 | . 40 75 . . . 60 53 Shots Fired 212 | . 14 151 . . . 4 43 Gun 171 | . 14 138 . . . 4 15 Cannon 13 | . . 13 . . . . . Launcher 7 | . . . . . . . 7 Special 21 | . . . . . . . 21 Kinetic 169 | . 14 149 . . . 2 4 Thermal 9 | . . . . . . . 9 Explosive 7 | . . . . . . . 7 Electromagnetic 6 | . . 2 . . . 2 2 Robot Hit Streak 22 | . 7 22 . . . 2 13 Robot Miss Streak 4 | . 2 4 . . . 2 2 Penetration Max . | . . . . . . . . Secondary Targets . | . . . . . . . . Shots Hit Robots 275 | . 10 117 27 . 1 63 57 Core Hits 94 | . 3 38 7 . 1 22 23 Critical Kills 1 | . 1 . . . . . . Critical Parts Destroyed 2 | . . 1 . . . . 1 Critical Strikes 25 | . 1 3 3 . . 8 10 Burn 2 | . . . . . . . 2 Destroy 3 | . 1 1 . . . . 1 Sever 14 | . . 2 3 . . 6 3 Impale 6 | . . . . . . 2 4 Melee Attacks 289 | . . 47 43 16 17 82 84 Impact 2 | . . 2 . . . . . Slashing 201 | . . 45 43 16 17 68 12 Piercing 86 | . . . . . . 14 72 Sneak Attacks 19 | . . . 11 . 1 3 4 Combat Hostiles 3 | . . . 1 . 1 . 1 Follow-up Attacks 6 | . . . 2 . . 2 2 Damage Inflicted 7469 | . 131 1859 1611 . 59 2229 1580 Guns 2002 | . 131 1631 . . . 27 213 Cannons 88 | . . 88 . . . . . Explosions 126 | . . . . . . . 126 Melee 5249 | . . 140 1611 . 59 2202 1237 Ramming 4 | . . . . . . . 4 Kinetic 1901 | . 131 1698 . . . 27 45 Thermal 151 | . . . . . . . 151 Explosive 126 | . . . . . . . 126 Electromagnetic 38 | . . 21 . . . . 17 Impact 31 | . . 31 . . . . . Slashing 4047 | . . 109 1611 . 59 1856 412 Piercing 1171 | . . . . . . 346 825 Highest Corruption 16 | . . . . . . 16 11 Average Corruption 11 | . . . . . . 11 10 Corruption Purged . | . . . . . . . . Corruption Blocked 4 | . . . . . . 4 . Effects 73 | . . . . . . 19 54 Message Errors 13 | . . . . . . 5 8 Matter Fused 22 | . . . . . . 3 19 Heat Flow Errors 5 | . . . . . . 2 3 Energy Discharges 11 | . . . . . . 3 8 Parts Rejected 4 | . . . . . . 2 2 Data Loss (minor) 8 | . . . . . . 2 6 Data Loss (major) 5 | . . . . . . 1 4 Misfires 1 | . . . . . . . 1 Alerts 1 | . . . . . . . 1 Misdirections 3 | . . . . . . 1 2 Overload Shots . | . . . . . . . . Overflow Damage 703 | . . . 490 . . 118 95 Projectiles . | . . . . . . . . Explosions 22 | . . . . . . . 22 Melee 681 | . . . 490 . . 118 73 Knockbacks 4 | . . 4 . . . . . Impact . | . . . . . . . . Kinetic 4 | . . 4 . . . . . Secondary . | . . . . . . . . Self-Inflicted Damage 95 | . . . . . . . 95 Shots 2 | . . . . . . . 2 Rammed 2 | . . . . . . . 2 Targets Rammed 2 | . . . . . . . 2 Kicked . | . . . . . . . . Crushed . | . . . . . . . . Highest Temperature 269 | . . 269 . . . 190 260 Average Temperature 90 | . . 142 . . . 86 69 Received Heat Transfer 2046 | . 24 561 72 . . 453 936 Siege Activations . | . . . . . . . . Robots Corrupted . | . . . . . . . . Combat Hostiles . | . . . . . . . . Parts Fried . | . . . . . . . . Impact Corruptions . | . . . . . . . . Robots Melted . | . . . . . . . . Combat Hostiles . | . . . . . . . . Parts Melted 5 | . . 3 . . . . 2 Heat Transferred 407 | . . . . . . . 407 Parts Sabotaged . | . . . . . . . . Parts Stolen . | . . . . . . . . Parts Stripped . | . . . . . . . . Power Chain Reactions . | . . . . . . . . Alert | -11 -10 -10 -8 -6 -6 -5 -5 ------- Run | Yrd Mat Sub Rec Fac DSF Fac Ext Peak Influence 240 | . 27 . 107 16 35 237 240 Initial 115 | . . . 7 4 11 13 115 Average 70 | . 11 . 30 9 30 95 132 Maximum Alert Level 1 | . . . . . . 1 1 Low Security (%) 90 | 100 100 . 100 100 100 88 78 Level 1 9 | . . . . . . 11 21 Level 2 . | . . . . . . . . Level 3 . | . . . . . . . . Level 4 . | . . . . . . . . Level 5 . | . . . . . . . . High Security . | . . . . . . . . Max Security . | . . . . . . . . Squads Dispatched 6 | . . . . . 1 3 2 Investigation 3 | . . . . . . 1 2 Extermination 1 | . . . . . . 1 . Reinforcement 2 | . . . . . 1 1 . Assault . | . . . . . . . . Garrison . | . . . . . . . . Intercept . | . . . . . . . . Searches Triggered . | . . . . . . . . Construction Impeded . | . . . . . . . . Haulers Reinforced . | . . . . . . . . Active Scanning Responses . | . . . . . . . . Cargo Convoy Interrupts . | . . . . . . . . Stealth | -11 -10 -10 -8 -6 -6 -5 -5 --------- Run | Yrd Mat Sub Rec Fac DSF Fac Ext Distress Signals 2 | . . . . . . 2 . Communications Jammed . | . . . . . . . . Distress Signals . | . . . . . . . . Times Spotted 85 | . 1 21 3 . 4 25 31 Peak Tracking Total 7 | . 1 2 2 . 5 4 7 Tactical Retreats 8 | . . 1 . . . 4 3 Traps | -11 -10 -10 -8 -6 -6 -5 -5 ------- Run | Yrd Mat Sub Rec Fac DSF Fac Ext Traps Triggered 3 | . . 2 . . . . 1 Indirectly . | . . . . . . . . Trap Hack Attempts . | . . . . . . . . Triggered . | . . . . . . . . Disarmed . | . . . . . . . . Reprogrammed . | . . . . . . . . Reused . | . . . . . . . . Traps Extracted . | . . . . . . . . Installed 1 | . . . . . 1 . . Triggered . | . . . . . . . . Machines | -11 -10 -10 -8 -6 -6 -5 -5 ---------- Run | Yrd Mat Sub Rec Fac DSF Fac Ext Machines Disabled 4 | . . . 1 . . . 3 Max in Single Turn 1 | . . . 1 . . . 1 Garrison Access 1 | . . . . . . 1 . Machines Repaired . | . . . . . . . . Machines Dismantled . | . . . . . . . . Machines Sabotaged . | . . . . . . . . Overloaded Fab Kills . | . . . . . . . . Hacking | -11 -10 -10 -8 -6 -6 -5 -5 --------- Run | Yrd Mat Sub Rec Fac DSF Fac Ext Machines Accessed 26 | . 2 1 10 2 . 3 8 Terminals 16 | . 2 . 5 2 . . 7 Fabricators 1 | . . . . . . 1 . Repair Stations 1 | . . . . . . 1 . Recycling Units 6 | . . . 5 . . . 1 Scanalyzers . | . . . . . . . . Garrison Access 1 | . . . . . . 1 . Total Hacks 55 | . 4 1 21 3 . 8 18 Successful 26 | . 3 1 7 2 . 5 8 Failed 29 | . 1 . 14 1 . 3 10 Catastrophic 7 | . . . 5 1 . . 1 Database Lockouts . | . . . . . . . . Manual 12 | . . . 6 1 . 1 4 Terminals 37 | . 4 . 13 3 . . 17 Fabricators 3 | . . . . . . 3 . Repair Stations 4 | . . . . . . 4 . Recycling Units 9 | . . . 8 . . . 1 Scanalyzers . | . . . . . . . . Garrison Access 1 | . . . . . . 1 . Terminal Hacks 13 | . 3 1 2 2 . . 5 Record 3 | . . 1 . 1 . . 1 Prototype ID Bank 1 | . 1 . . . . . . Open Door 4 | . . . . . . . 4 Open DSF 1 | . . . . 1 . . . Unreport Threat 2 | . 1 . 1 . . . . Zone Layout 2 | . 1 . 1 . . . . Fabricator Hacks 2 | . . . . . . 2 . Network Status 1 | . . . . . . 1 . Build 1 | . . . . . . 1 . Repair Station Hacks 1 | . . . . . . 1 . Scan Component 1 | . . . . . . 1 . Recycling Unit Hacks 6 | . . . 5 . . . 1 Retrieve Components 6 | . . . 5 . . . 1 Scanalyzer . | . . . . . . . . Garrison Access Hacks 1 | . . . . . . 1 . Seal Access 1 | . . . . . . 1 . Unauthorized Hacks 3 | . . . . . . 1 2 Terminals 2 | . . . . . . . 2 Botnet 1 | . . . . . . . 1 Operators 1 | . . . . . . . 1 Fabricators 1 | . . . . . . 1 . Prioritize 1 | . . . . . . 1 . Repair Stations . | . . . . . . . . Recycling Units . | . . . . . . . . Scanalyzers . | . . . . . . . . Garrison Access . | . . . . . . . . Data Cores Recovered 1 | . . . . . . . 1 Used . | . . . . . . . . Hacking Detections 13 | . 1 . 5 1 . 1 5 Full Trace Events 3 | . . . . . . 1 2 Feedback Events 2 | . . . . . . 1 1 Hackware Fried 2 | . . . . . . 1 1 Feedback Blocked . | . . . . . . . . Robot Schematics Acquired . | . . . . . . . . Robots Built . | . . . . . . . . Authchips . | . . . . . . . . Time . | . . . . . . . . Total Robot Build Rating . | . . . . . . . . Part Schematics Acquired . | . . . . . . . . Parts Built 2 | . . . . . . 2 . Authchips . | . . . . . . . . Time 117 | . . . . . . 117 . Total Part Build Rating 14 | . . . . . . 14 . Parts Repaired . | . . . . . . . . Time . | . . . . . . . . Parts Recycled . | . . . . . . . . Recycled Matter . | . . . . . . . . Retrieved Matter . | . . . . . . . . Retrieved Components 26 | . . . 16 . . . 10 Parts Scanalyzed . | . . . . . . . . Part Schematics Acquired . | . . . . . . . . Parts Damaged . | . . . . . . . . Bothacking | -11 -10 -10 -8 -6 -6 -5 -5 ------------ Run | Yrd Mat Sub Rec Fac DSF Fac Ext Used RIF Installer . | . . . . . . . . Robots Hacked 2 | . . . . . . . 2 Non-combat 1 | . . . . . . . 1 Combat 1 | . . . . . . . 1 Robot Hacks Applied 2 | . . . . . . . 2 parse_system 1 | . . . . . . . 1 find_recycling 1 | . . . . . . . 1 Relay Couplers Released . | . . . . . . . . Fabnet Peak Effective % . | . . . . . . . . Robots Rewired 10 | . . . . . . . 10 Allies Hacked . | . . . . . . . . Hacks Repelled . | . . . . . . . . Allies | -11 -10 -10 -8 -6 -6 -5 -5 -------- Run | Yrd Mat Sub Rec Fac DSF Fac Ext Total Allies 17 | . . . . . . . 17 Largest Group 7 | . . . . . . . 7 Highest-Rated Group 178 | . . . . . . . 178 Highest-Rated Ally 39 | . . . . . . . 39 Total Orders 6 | . . . . . . . 6 STAY 3 | . . . . . . . 3 FOLLOW 3 | . . . . . . . 3 Ally Attacks 64 | . . . . . . . 64 Total Damage 1463 | . . . . . . . 1463 Kills 12 | . . . . . . . 12 Allies Corrupted . | . . . . . . . . Allies Melted . | . . . . . . . . Intel | -11 -10 -10 -8 -6 -6 -5 -5 ------- Run | Yrd Mat Sub Rec Fac DSF Fac Ext Robot Analysis Total . | . . . . . . . . Derelict Logs Recovered 1 | . . 1 . . . . . Drone Launches . | . . . . . . . . Drone Recoveries . | . . . . . . . . Exploration | -11 -10 -10 -8 -6 -6 -5 -5 ------------- Run | Yrd Mat Sub Rec Fac DSF Fac Ext Turns Passed 7913 | 93 600 3492 1033 298 160 786 1451 Spaces Moved 4539 | 52 111 1728 803 249 142 563 891 Core 23 | 1 . . 22 . . . . Treads 3191 | 51 111 1728 269 . . 489 543 Legs 210 | . . . . . 41 74 95 Wheels 1024 | . . . 512 249 101 . 162 Hover . | . . . . . . . . Flight 91 | . . . . . . . 91 Fastest Speed 50 | 50 160 160 87 82 82 82 82 Average Speed 126 | 157 160 160 117 85 82 82 112 Slowest Speed 181 | 160 160 160 160 87 82 82 181 Overloaded Moves . | . . . . . . . . Propulsion Burnouts . | . . . . . . . . Robots Hopped 1 | . . . . . . . 1 Cave-ins Triggered 2 | . . . . . . 2 . Exploration Rate (%) 44 | 6 19 88 99 5 73 12 51 Regions Visited 7 Branch Regions 3 Pre-discovered Areas 2 | . . 2 . . . . . Known Exits Taken 2 | . . . . 1 . 1 . Unknown Exits Taken 4 | 1 1 1 1 . . . . Scrap Searched 16 | . . 16 . . . . . Spaces Dug 156 | . . 1 . 12 7 7 129 Terrain Destroyed 200 | . . 1 . 12 7 7 173 Melee 59 | . . 1 . 12 7 7 32 Projectile 1 | . . . . . . . 1 AOE 140 | . . . . . . . 140 Terrain Rammed . | . . . . . . . . Walls Destroyed . | . . . . . . . . Machines Disabled . | . . . . . . . . Actions | -11 -10 -10 -8 -6 -6 -5 -5 --------- Run | Yrd Mat Sub Rec Fac DSF Fac Ext Total 6096 | 60 519 2269 862 316 165 752 1153 Wait 1008 | . 397 341 3 49 10 89 119 Move 4530 | 51 110 1727 802 248 141 562 889 Hop 1 | . . . . . . . 1 Pick Up 33 | 3 3 8 10 2 . 4 3 Fast Attach 27 | 6 1 5 1 . . 10 4 Attach 9 | . . . . 5 . 2 2 Detach 3 | . . 2 . . . 1 . Swap 38 | . 1 27 . . . 2 8 Drop 35 | . . 18 12 . . . 5 Fire 129 | . 7 76 . . . 4 42 Melee 256 | . . 41 34 12 13 78 78 Ram 2 | . . . . . . . 2 Kick . | . . . . . . . . Crush . | . . . . . . . . Escape Stasis . | . . . . . . . . Rewire . | . . . . . . . . Trap 1 | . . . . . 1 . . Miscellaneous 24 | . . 24 . . . . . Route ------- -11/Scrapyard -10/Materials (discovered 2 exits: [*Min] / *Sub) -10/Subcaves (discovered 2 exits: [*Mat] / *Rec) -8/Recycling -6/Factory -6/DSF -5/Factory -5/Extension History --------- Turn | Location | Event 38 | -11/Scrapyard | Discovered new exit (range 14) 94 | -11/Scrapyard | Entered Materials 128 | -10/Materials | Discovered new exit (range 6) 314 | -10/Materials | Build established: Mutant 675 | -10/Materials | Discovered new exit (range 4) 694 | -10/Materials | Entered Subcaves 752 | -10/Subcaves | Learned Materials interactive machine intel 1711 | -10/Subcaves | Shifting Twisted Machinery released Sub. Laser 1714 | -10/Subcaves | Discovered new exit (range 2) 1718 | -10/Subcaves | Shifting Twisted Machinery released Scrap Shield 1739 | -10/Subcaves | Shifting Twisted Machinery released Flamer 1741 | -10/Subcaves | Learned location of Zion (-6) 1741 | -10/Subcaves | Met a Zionite searching for "candidates" 1798 | -10/Subcaves | Shifting Twisted Machinery released Sub. Power Source 2065 | -10/Subcaves | Visited Clippyterm 2070 | -10/Subcaves | Learned location of Deep Caves (-6) 2510 | -10/Subcaves | Disturbed a concealed Subdweller 3023 | -10/Subcaves | A swath of the cavern ceiling suddenly collapsed 3123 | -10/Subcaves | A swath of the cavern ceiling suddenly collapsed 3379 | -10/Subcaves | Core integrity fell below 50% 4104 | -10/Subcaves | Ambushed by angry Subdweller bent on revenge 4169 | -10/Subcaves | Discovered new exit (range 3) 4186 | -10/Subcaves | Entered Recycling 4217 | -8/Recycling | Found Scrap Engine 4238 | -8/Recycling | Build established: Derelict-Mutant 4411 | -8/Recycling | Core integrity fell below 20% 4517 | -8/Recycling | Discovered new exit (range 10) 4616 | -8/Recycling | Build established: Construct 5219 | -8/Recycling | Entered Factory 5219 | -6/Factory | Evolved 8 slots: Power x1, Propulsion x2, Utility x5 5510 | -6/Factory | Build established: Hacker-Mutant 5517 | -6/Factory | Identified exit to DSF 5517 | -6/Factory | Entered DSF 5594 | -6/DSF | Additional patrols routed to DSF 5663 | -6/DSF | Discovered new exit (range 13) 5677 | -6/DSF | Entered Factory 5677 | -5/Factory | Evolved 2 slots: Propulsion x1, Utility x1 5969 | -5/Factory | Crushed by falling debris 5969 | -5/Factory | System corruption reached 10% 6000 | -5/Factory | Lost 3 parts (3u) 6074 | -5/Factory | Fabricated Antimatter Reactor (x2) 6112 | -5/Factory | Lost 3 parts (1p1n1w) 6247 | -5/Factory | Crushed by falling debris 6277 | -5/Factory | Hacking Suite fried by hacking feedback 6340 | -5/Factory | Lost 5 parts (1p1n2u1w) 6447 | -5/Factory | Discovered new exit (range 20) 6463 | -5/Factory | Identified exit to Extension 6463 | -5/Factory | Entered Extension 6523 | -5/Extension | Core integrity fell below 50% 6630 | -5/Extension | Rescued a captive Derelict 6632 | -5/Extension | Rescued a captive Derelict 7136 | -5/Extension | Rescued a captive Derelict 7136 | -5/Extension | Rescued a captive Derelict 7272 | -5/Extension | Adv. Hacking Suite fried by hacking feedback 7349 | -5/Extension | Spotted B-75 Beast 7405 | -5/Extension | Lost 3 allies 7458 | -5/Extension | Lost 3 allies 7525 | -5/Extension | Lost 4 allies 7624 | -5/Extension | Rescued a captive Derelict 7797 | -5/Extension | Lost 4 allies 7819 | -5/Extension | Rescued a captive Derelict 7820 | -5/Extension | Rescued a captive Derelict 7901 | -5/Extension | Core integrity fell below 20% 7914 | -5/Extension | Destroyed by Y-64 Sentinel with Wave Gun Last Messages --------------- 07907_ Carbon-Compact Exoskeleton core remains intact and functional. 07907_ Slug penetrates G-50 Soldier. 07909_ R-10 Processor collects Adv. Heat Sink. 07910_ Acquired 51 matter. 07910_ R-10 Processor collects Phasing Sabre. 07910_ Slug penetrates G-50 Soldier. 07910_ R-10 Processor destroyed. 07911_ G-50 Soldier heat short circuits Lgt. Angular Momentum Engine. 07912_ Arm. Scrap Engine consumes VTOL Module. 07912_ Penetrated by Slug. 07912_ R-10 Processor collects Com. Wheel. 07913_ Arm. Scrap Engine consumes Lgt. Nuclear Core. 07913_ G-50 Soldier heat short circuits Hvy. Laser. 07913_ Penetrated by Slug. 07914_ System corrupted: Energy discharge (-20). 07914_ R-10 Processor collects Adv. Heat Sink. Map ----- +----------------------------------------------------+ | | | | | | | | | | | | | | | | | | | | | | | | | | | | | | | | | | | | | | | | | ?????????????????????????????????????????????????? | | ???????????????????####??????????????????????????? | | ???????????????????#T #??????????????????????????? | | #################### ########???????????????????? | | R% #???????????????????? | | % g R %%@ #???????????????????? | | % =%=g%sY #???????????????????? | | ###################### Y #??????????????????o? | | ?????????????????????# #???????????????????? | | ?????????????????????# #### #???????????????????? | | ?????????????????????# #??? #??????????????????? | | ????????????????????? #???? ?????????????????? | | ????????????????????### #???? ###????????????????? | | ??????????????????????# #?????#??????????????????? | | ??????????????????????# #????????????????????????? | | ??????????????????????# #????????????????????????? | | ?????????????????????? T????????????????????????? | | ??????????????????????""#????????????????????????? | | ?????????????????????????????????????????????????? | | ?????????????????????????????????????????????????? | | ?????????????????????????????????????????????????? | | ?????????????????????????????????????????????????? | | ?????????????????????????????????????????????????? | | ?????????????????????????????????????????????????? | | ?????????????????????????????????????????????????? | | ?????????????????????????????????????????????????? | | ?????????????????????????????????????????????????? | | ?????????????????????????????????????????????????? | | ?????????????????????????????????????????????????? | | ?????????????????????????????????????????????????? | +----------------------------------------------------+ Best States ------------- Heat Dissipation 40 Energy Generation 31 Energy Capacity 250 Matter Stores 300 Matter Capacity 300 Sight Range 22 Robot Scan Range 15 Terrain Scan Range 20 Terrain Scan Density 10 Corruption Containment 8 Corruption Block 15 Armor Coverage 800 Weapon Shielding 33 Evasion (%) 58 Melee Accuracy 5 Target Analysis 6 Recoil Reduction 4 Salvage Targeting 3 Offensive Hacking 40 Item Schematics ----------------- None Robot Schematics ------------------ None Fabricated ------------ Antimatter Reactor | x2 | -5/Factory | Preloaded Alien Tech Used ----------------- None Achievements -------------- None Challenges ------------ None Game ------ Seed CompositeClaymoresTearclaws Manual? 0 Play Time 01:14:04 Cumulative 82.9 hours Start 2024.05.19 @ 18:00:54 End 2024.05.19 @ 19:16:13 Sessions 1 Manual Loads 0 Difficulty Rogue Special Mode None Game No. 131 Rogue 131 Adventurer 0 Explorer 0 Win Type - Total 1 Types 1/0/0/0/0/0/0/0/0 Lore% 40 Gallery% 43 Achievement% 32 Wizard Run 0 Options --------- Layout 1 ASCII 0 Keyboard 1 Movement Numpad Keybinds 0 Fullscreen 1 Font 24/Smallcaps Map View 50x35 Zoom Use 0% Tactical HUD 1 Map Filters NONE Filters NONE Steam 1 RUN: 4b642f86-8d27-4409-97db-d21c1f40b8ba